bitfinex/quotes_SOLUSD_20240916
["timestamp","ask_amount","ask_price","bid_price","bid_amount"]
[1726517681592,7.5857,131.83,131.8,7.5872]
[1726517681999,15.3319,131.85,131.81,7.5866]
[1726517682398,22.9167,131.85,131.81,7.5866]
[1726517683401,23.776884,131.84,131.81,7.5866]
[1726517683604,31.361884,131.84,131.8,7.587]
[1726517683812,7.5855,131.83,131.8,7.587]
[1726517684195,7.5855,131.83,131.79,26.5564]
[1726517684388,23.776884,131.82,131.79,26.5564]
[1726517686227,7.5851,131.84,131.8,7.587]
[1726517691220,23.776884,131.84,131.82,7.5861]
[1726517692209,48.1814265,131.87,131.82,7.5861]
[1726517692210,7.584,131.86,131.82,7.5861]
[1726517692515,23.776884,131.85,131.82,7.5861]
[1726517695795,7.5844,131.85,131.82,7.5861]
[1726517697220,7.585,131.84,131.81,26.5527]
[1726517697521,23.776884,131.83,131.81,26.5527]
[1726517697909,23.776884,131.84,131.81,26.5527]
[1726517698213,43.776884,131.86,131.83,18.9638]
[1726517698524,51.360684,131.86,131.83,26.549]
[1726517698723,7.5849,131.84,131.8,18.9668]
[1726517698923,7.5849,131.84,131.81,5.86732688]
[1726517699131,7.5849,131.84,131.8,18.9668]
[1726517699132,23.776884,131.84,131.8,18.9668]
[1726517699305,31.362984,131.82,131.78,7.5883]
[1726517699505,7.5861,131.82,131.79,5.87013536]
[1726517699709,7.5861,131.82,131.78,7.5883]
[1726517699919,7.5867,131.81,131.78,7.5883]
[1726517700217,23.776884,131.8,131.77,26.5598]
[1726517700419,23.776884,131.8,131.78,13.46002671]
[1726517700618,23.776884,131.8,131.78,7.5883]
[1726517700815,7.5863,131.82,131.78,7.5883]
[1726517701016,20.0,131.81,131.77,18.9711]
[1726517701204,31.364184,131.8,131.77,18.9711]
[1726517701409,7.5879,131.79,131.75,26.5651]
[1726517701615,7.5879,131.79,131.76,5.8730049]
[1726517701616,20.0,131.79,131.76,5.8730049]
[1726517701827,23.776884,131.78,131.74,0.2538265]
[1726517702010,7.5889,131.77,131.75,5.87583407]
[1726517702219,23.776884,131.78,131.74,19.2302265]
[1726517702432,23.776884,131.78,131.76,5.87552113]
[1726517702639,7.5874,131.8,131.76,7.589]
[1726517702926,23.776884,131.79,131.77,7.5889]
[1726517703431,22.8912,131.83,131.78,7.5884]
[1726517703625,22.8912,131.83,131.79,7.5877]
[1726517704835,23.776884,131.82,131.79,7.5877]
[1726517705133,31.362984,131.82,131.78,26.5588]
[1726517705335,23.776884,131.82,131.79,7.5878]
[1726517706227,6.0104,131.85,131.8,18.9679]
[1726517706425,19.2130265,131.87,131.8,18.9679]
[1726517706426,20.0,131.84,131.8,18.9679]
[1726517707013,20.0,131.85,131.8,18.9679]
[1726517707434,27.5845,131.85,131.81,7.5866]
[1726517707614,27.5845,131.85,131.82,7.586]
[1726517707813,23.776884,131.84,131.82,7.586]
[1726517708016,23.776884,131.84,131.81,7.5865]
[1726517708512,20.0,131.85,131.82,7.586]
[1726517708911,7.5838,131.86,131.82,7.586]
[1726517709820,7.8372265,131.87,131.82,18.9651]
[1726517710141,0.2538265,131.87,131.84,7.5845]
[1726517710311,20.2538265,131.87,131.84,7.5845]
[1726517710513,0.2538265,131.87,131.85,7.5843]
[1726517711144,0.2538265,131.87,131.84,26.5471]
[1726517711648,0.2538265,131.87,131.83,7.5853]
[1726517711937,23.776884,131.85,131.82,7.5856]
[1726517712108,23.776884,131.85,131.81,26.5517]
[1726517712109,31.361284,131.85,131.81,26.5517]
[1726517714233,7.584,131.86,131.82,7.5856]
[1726517714416,23.776884,131.86,131.83,18.9635]
[1726517714736,7.8372265,131.87,131.83,26.5488]
[1726517715912,23.776884,131.86,131.83,26.5488]
[1726517716312,7.5841,131.86,131.83,18.9635]
[1726517716813,7.5841,131.86,131.83,26.549]
[1726517717014,23.776884,131.85,131.83,18.9635]
[1726517719936,0.2538265,131.87,131.82,7.5858]
[1726517719937,0.2538265,131.87,131.86,7.5838]
[1726517721946,0.2538265,131.87,131.85,26.5446]
[1726517722343,0.2538265,131.87,131.85,18.9605]
[1726517722538,7.8370265,131.87,131.84,7.5845]
[1726517723650,0.2538265,131.87,131.84,7.5845]
[1726517724250,0.2538265,131.87,131.84,26.5468]
[1726517724930,0.2538265,131.87,131.85,7.5841]
[1726517725449,0.2538265,131.87,131.79,15.3475]
[1726517725647,23.776884,131.84,131.8,7.5871]
[1726517725852,23.776884,131.84,131.79,15.3475]
[1726517726151,23.776884,131.84,131.79,34.3165]
[1726517726318,23.776884,131.84,131.8,7.5871]
[1726517726319,31.361984,131.84,131.8,7.5871]
[1726517728434,23.776884,131.86,131.81,18.9664]
[1726517728749,0.2538265,131.87,131.79,24.22598073]
[1726517729127,0.2538265,131.87,131.79,33.36100637]
[1726517729334,0.2538265,131.87,131.79,24.22598073]
[1726517729540,0.2538265,131.87,131.85,7.5841]
[1726517730351,0.2538265,131.87,131.83,18.9636]
[1726517730734,0.2538265,131.87,131.8,56.9019]
[1726517730951,23.776884,131.85,131.82,7.5859]
[1726517731361,23.776884,131.85,131.8,18.9673]
[1726517731528,7.585,131.84,131.8,26.5541]
[1726517732851,7.585,131.84,131.81,7.5866]
[1726517733626,20.0,131.84,131.81,7.5866]
[1726517735049,20.0,131.84,131.82,7.586]
[1726517735251,23.776884,131.86,131.83,7.5854]
[1726517735753,7.8372265,131.87,131.83,7.5854]
[1726517736456,20.0,131.86,131.83,7.5854]
[1726517737761,7.8372265,131.87,131.84,7.5849]
[1726517738053,44.0307105,131.87,131.84,7.5849]
[1726517739840,24.0307105,131.87,131.84,7.5849]
[1726517741333,31.6139105,131.87,131.83,7.5852]
[1726517741530,31.6139105,131.87,131.84,7.5848]
[1726517741726,0.2538265,131.87,131.84,18.9621]
[1726517741930,0.2538265,131.87,131.86,26.5433]
[1726517744159,0.2538265,131.87,131.86,18.9595]
[1726517745454,0.2538265,131.87,131.85,7.584]
[1726517745843,0.2538265,131.87,131.85,26.5449]
[1726517746756,0.2538265,131.87,131.85,18.9609]
[1726517747636,7.8370265,131.87,131.84,7.5847]
[1726517752740,31.360784,131.86,131.83,18.9638]
[1726517753041,0.2538265,131.87,131.83,26.549]
[1726517753042,7.8372265,131.87,131.83,26.549]
[1726517753457,23.776884,131.86,131.83,26.549]
[1726517753967,0.2538265,131.87,131.84,7.5848]
[1726517754455,0.2538265,131.87,131.85,7.5843]
[1726517755045,24.0307105,131.87,131.83,18.9638]
[1726517755354,23.776884,131.86,131.83,26.5491]
[1726517755747,7.8372265,131.87,131.83,26.5491]
[1726517755950,0.2538265,131.87,131.83,18.9638]
[1726517756353,0.2538265,131.87,131.84,7.5847]
[1726517758144,7.8371265,131.87,131.84,7.5847]
[1726517758343,23.776884,131.86,131.83,26.5491]
[1726517758660,31.360884,131.86,131.83,26.5491]
[1726517759443,31.360884,131.86,131.83,18.9638]
[1726517760872,23.776884,131.86,131.8,18.967]
[1726517761038,23.776884,131.86,131.79,18.9693]
[1726517761039,23.776884,131.82,131.79,18.9693]
[1726517761242,23.776884,131.82,131.8,7.5871]
[1726517762764,23.776884,131.82,131.79,26.557]
[1726517762943,31.363084,131.82,131.79,18.9693]
[1726517764571,7.5867,131.81,131.77,7.5888]
[1726517764783,23.776884,131.82,131.78,5.88582592]
[1726517764784,7.5872,131.8,131.78,5.88582592]
[1726517764959,7.5872,131.8,131.77,7.5888]
[1726517765288,23.776884,131.8,131.77,7.5888]
[1726517768955,20.0,131.81,131.78,18.9707]
[1726517769471,23.776884,131.81,131.78,18.9707]
[1726517769674,22.6919,131.83,131.79,7.5878]
[1726517769847,27.5862,131.82,131.79,7.5878]
[1726517771773,27.5862,131.82,131.78,18.9707]
[1726517771774,27.5862,131.82,131.78,26.5588]
[1726517772653,7.5866,131.81,131.78,26.5588]
[1726517772863,31.363484,131.81,131.78,26.5588]
[1726517773551,7.5873,131.8,131.76,26.563]
[1726517773766,23.776884,131.79,131.76,26.563]
[1726517774157,31.364984,131.79,131.76,18.9738]
[1726517775262,31.364984,131.79,131.75,7.5899]
[1726517776860,31.364984,131.79,131.74,19.2303265]
[1726517776861,31.364984,131.79,131.76,7.5894]
[1726517777175,23.776884,131.79,131.76,7.5894]
[1726517777758,31.364984,131.79,131.74,19.2303265]
[1726517777959,31.364984,131.79,131.75,5.87824564]
[1726517778158,31.364984,131.79,131.74,19.2303265]
[1726517778476,20.0,131.82,131.76,18.9735]
[1726517778680,20.0,131.82,131.74,0.2538265]
[1726517778681,20.0,131.82,131.79,7.5876]
[1726517779179,27.5861,131.82,131.79,7.5876]
[1726517780076,20.0,131.82,131.79,7.5876]
[1726517781359,20.0,131.82,131.8,7.5871]
[1726517781563,20.0,131.82,131.79,7.5876]
[1726517781985,27.5861,131.82,131.79,7.5876]
[1726517782495,27.5861,131.82,131.78,26.559]
[1726517782688,31.363784,131.81,131.78,18.9709]
[1726517784777,31.363784,131.81,131.78,26.5592]
[1726517785088,23.776884,131.81,131.78,26.5592]
[1726517785380,27.5863,131.82,131.79,7.5877]
[1726517785686,20.0,131.82,131.79,7.5877]
[1726517786483,27.5862,131.82,131.78,26.559]
[1726517786963,31.363684,131.81,131.78,18.9709]
[1726517787472,31.363684,131.81,131.77,7.5887]
[1726517787682,7.5873,131.8,131.77,7.5887]
[1726517788256,7.5873,131.8,131.76,26.5632]
[1726517788463,7.5878,131.79,131.76,26.5632]
[1726517788960,23.776884,131.78,131.76,18.9738]
[1726517789161,31.365384,131.78,131.74,7.8441265]
[1726517789384,7.5891,131.77,131.74,0.2538265]
[1726517790289,7.5896,131.76,131.74,0.2538265]
[1726517790498,51.366984,131.75,131.74,0.2538265]
[1726517790785,43.776884,131.75,131.74,0.2538265]
[1726517791086,51.366984,131.75,131.74,0.2538265]
[1726517792082,20.0,131.75,131.74,0.2538265]
[1726517793294,43.776884,131.75,131.74,0.2538265]
[1726517793665,51.366984,131.75,131.74,0.2538265]
[1726517796379,43.776884,131.77,131.74,0.2538265]
[1726517796886,51.365984,131.77,131.74,0.2538265]
[1726517798193,43.776884,131.77,131.74,0.2538265]
[1726517798396,43.776884,131.77,131.74,7.8442265]
[1726517798898,20.0,131.78,131.74,19.2305265]
[1726517799100,16.1083,131.81,131.74,0.2538265]
[1726517799277,7.5872,131.8,131.76,26.5631]
[1726517801324,7.5878,131.79,131.76,18.9737]
[1726517801889,23.776884,131.8,131.75,7.5899]
[1726517801890,7.5884,131.78,131.75,7.5899]
[1726517802084,7.5884,131.78,131.74,0.2538265]
[1726517802514,7.5884,131.78,131.74,7.8439265]
[1726517806087,7.588,131.79,131.75,7.59]
[1726517806283,23.776884,131.8,131.74,0.2538265]
[1726517806488,20.0,131.79,131.76,7.5893]
[1726517809204,23.776884,131.78,131.75,26.5648]
[1726517810121,31.365284,131.78,131.75,18.9751]
[1726517810413,7.589,131.77,131.74,7.8441265]
[1726517810618,7.589,131.77,131.74,0.2538265]
[1726517812009,23.776884,131.76,131.74,0.2538265]
[1726517812995,31.366484,131.76,131.74,0.2538265]
[1726517813693,23.776884,131.76,131.74,0.2538265]
[1726517815919,23.776884,131.76,131.74,7.8442265]
[1726517816717,23.776884,131.76,131.74,0.2538265]
[1726517819416,7.589,131.77,131.74,7.8444265]
[1726517819917,31.365484,131.78,131.74,7.8444265]
[1726517820123,31.365484,131.78,131.75,7.59]
[1726517820301,31.365484,131.78,131.74,7.8444265]
[1726517820614,20.0,131.79,131.76,7.5895]
[1726517820915,7.5879,131.79,131.76,7.5895]
[1726517821111,20.0,131.78,131.76,7.5895]
[1726517821416,20.0,131.78,131.75,7.5899]
[1726517821798,7.5885,131.78,131.74,26.8197265]
[1726517821996,7.5891,131.77,131.74,0.2538265]
[1726517822411,23.776884,131.76,131.74,0.2538265]
[1726517822994,51.366984,131.75,131.74,0.2538265]
[1726517831313,20.0,131.75,131.74,0.2538265]
[1726517831516,16.1627,131.8,131.75,7.5899]
[1726517831824,7.5881,131.79,131.75,7.5899]
[1726517832501,7.5884,131.78,131.75,7.5899]
[1726517834815,31.365884,131.77,131.74,0.2538265]
[1726517835022,7.5897,131.76,131.74,0.2538265]
[1726517835329,23.776884,131.75,131.74,0.2538265]
[1726517835536,31.366984,131.75,131.74,0.2538265]
[1726517837910,41.7996,131.79,131.74,0.2538265]
[1726517837911,18.9696,131.79,131.74,0.2538265]
[1726517838112,7.5886,131.78,131.74,7.8442265]
[1726517838313,7.5886,131.78,131.75,7.59]
[1726517839010,7.5886,131.78,131.74,26.8208265]
[1726517844750,7.5895,131.76,131.74,0.2538265]
[1726517845177,7.5893,131.77,131.74,0.2538265]
[1726517845834,7.5893,131.77,131.74,7.8443265]
[1726517846033,7.5887,131.78,131.74,26.8210265]
[1726517846654,7.5887,131.78,131.75,7.59]
[1726517847146,7.5887,131.78,131.74,26.8209265]
[1726517848159,7.589,131.77,131.74,26.8209265]
[1726517848335,7.589,131.77,131.74,19.2305265]
[1726517850953,7.589,131.77,131.74,26.8211265]
[1726517852869,7.589,131.77,131.74,19.2305265]
[1726517858278,23.776884,131.77,131.74,0.2538265]
[1726517858561,51.366984,131.75,131.74,0.2538265]
[1726517858944,67.748984,131.75,131.74,0.2538265]
[1726517859967,86.724284,131.75,131.74,0.2538265]
[1726517861665,109.554284,131.75,131.74,0.2538265]
[1726517861970,109.554284,131.75,131.7,0.2538265]
[1726517861971,27.5924,131.71,131.7,0.2538265]
[1726517862562,51.369284,131.71,131.7,0.2538265]
[1726517874551,51.369284,131.71,131.66,0.2538265]
[1726517874552,31.371584,131.67,131.66,0.2538265]
[1726517875870,51.371584,131.67,131.66,0.2538265]
[1726517882657,67.1172,131.72,131.66,0.2538265]
[1726517882658,20.0,131.71,131.66,0.2538265]
[1726517883061,20.0,131.69,131.66,7.8487265]
[1726517883281,7.5932,131.7,131.66,7.8487265]
[1726517883679,7.5932,131.7,131.67,7.5946]
[1726517883875,7.5926,131.71,131.67,7.5946]
[1726517884470,20.0,131.7,131.67,7.5946]
[1726517884871,7.593,131.7,131.67,7.5946]
[1726517885087,7.593,131.7,131.66,7.8489265]
[1726517887892,16.0488,131.77,131.69,15.54014398]
[1726517888076,16.0488,131.77,131.66,0.2538265]
[1726517888077,7.5899,131.76,131.71,26.573]
[1726517888995,7.5901,131.75,131.71,26.573]
[1726517889166,7.5907,131.74,131.7,24.2479]
[1726517889365,23.776884,131.73,131.7,24.2479]
[1726517892996,20.0,131.76,131.71,7.5922]
[1726517893200,20.0,131.74,131.72,7.5917]
[1726517893401,16.2295265,131.8,131.73,7.5912]
[1726517893402,7.5885,131.78,131.73,7.5912]
[1726517895011,43.776884,131.77,131.73,7.5912]
[1726517896495,51.365984,131.77,131.73,7.5912]
[1726517904014,51.365984,131.77,131.72,26.5711]
[1726517904015,7.5898,131.76,131.72,26.5711]
[1726517904315,23.776884,131.75,131.72,26.5711]
[1726517904509,7.5917,131.73,131.7,16.655]
[1726517905391,7.5918,131.72,131.68,26.5792]
[1726517905598,7.5924,131.71,131.68,18.9854]
[1726517905824,23.776884,131.7,131.67,15.4093]
[1726517906905,23.776884,131.7,131.67,23.0038]
[1726517911528,23.776884,131.7,131.66,7.8489265]
[1726517914007,31.369884,131.7,131.66,7.8489265]
[1726517916323,23.776884,131.7,131.67,7.5947]
[1726517920219,7.5926,131.71,131.68,7.5939]
[1726517920623,7.5922,131.72,131.68,7.5939]
[1726517920807,43.776884,131.71,131.68,7.5939]
[1726517921125,15.295,131.75,131.69,15.54014398]
[1726517921436,7.591,131.74,131.7,26.5739]
[1726517923129,20.0,131.74,131.71,7.5922]
[1726517923311,7.5903,131.75,131.72,7.5918]
[1726517923504,7.5903,131.75,131.71,7.5923]
[1726517926030,7.5907,131.74,131.7,26.5739]
[1726517926328,23.776884,131.73,131.7,26.5739]
[1726517926715,23.776884,131.73,131.7,18.9813]
[1726517926716,31.368584,131.73,131.7,18.9813]
[1726517926919,7.5919,131.72,131.69,7.5934]
[1726517927513,23.776884,131.71,131.68,7.5939]
[1726517927717,23.776884,131.7,131.67,26.5801]
[1726517931318,31.369984,131.7,131.67,18.9857]
[1726517931515,31.369984,131.7,131.66,7.8489265]
[1726517931516,7.5936,131.69,131.66,7.8489265]
[1726517931706,23.776884,131.7,131.66,0.2538265]
[1726517931707,31.371084,131.68,131.66,0.2538265]
[1726517931921,7.5942,131.68,131.66,0.2538265]
[1726517934704,23.776884,131.68,131.66,0.2538265]
[1726517940534,31.371084,131.68,131.66,0.2538265]
[1726517940935,31.371584,131.67,131.66,0.2538265]
[1726517941920,51.371584,131.67,131.66,0.2538265]
[1726517945549,20.0,131.67,131.66,0.2538265]
[1726517947133,51.371584,131.67,131.66,0.2538265]
[1726517956487,43.776884,131.67,131.66,0.2538265]
[1726517956670,7.5945,131.68,131.66,0.2538265]
[1726517957163,21.9674,131.72,131.66,0.2538265]
[1726517957464,7.5927,131.71,131.67,7.5944]
[1726517958134,7.5927,131.71,131.66,0.2538265]
[1726517958135,7.5931,131.7,131.66,7.8488265]
[1726517958570,7.5936,131.69,131.66,7.8488265]
[1726517959056,7.5932,131.7,131.66,7.8488265]
[1726517959233,27.5932,131.7,131.66,7.8488265]
[1726517959442,23.776884,131.69,131.66,7.8488265]
[1726517959640,23.776884,131.69,131.67,30.0]
[1726517960571,27.5932,131.7,131.67,37.5946]
[1726517960757,23.776884,131.7,131.67,56.5813]
[1726517961067,31.369984,131.7,131.67,56.5813]
[1726517961657,31.31989043,131.7,131.67,56.5813]
[1726517963065,31.31989043,131.7,131.67,48.9867]
[1726517965564,23.72679043,131.7,131.67,56.5813]
[1726517966579,20.0,131.71,131.68,7.5938]
[1726517966744,20.0,131.71,131.68,37.5938]
[1726517966945,7.5914,131.73,131.69,7.5935]
[1726517967158,20.0,131.72,131.7,7.5929]
[1726517967464,7.5908,131.74,131.71,7.5922]
[1726517968866,41.716,131.78,131.7,18.9823]
[1726517968867,7.5914,131.73,131.7,26.575]
[1726517969450,7.5909,131.74,131.7,26.575]
[1726517969651,7.5909,131.74,131.71,30.0]
[1726517969850,7.5897,131.76,131.72,26.5708]
[1726517970068,7.5893,131.77,131.73,7.5907]
[1726517970270,7.5887,131.78,131.74,7.5905]
[1726517970570,7.5889,131.77,131.74,7.5905]
[1726517970756,7.5889,131.77,131.74,37.5905]
[1726517971145,7.5889,131.77,131.74,30.0]
[1726517974574,0.2538265,131.8,131.74,30.0]
[1726517974749,44.0307105,131.8,131.74,64.51674398]
[1726517974948,27.8411265,131.8,131.76,18.9735]
[1726517975471,0.2538265,131.8,131.77,7.5889]
[1726517975773,0.2538265,131.8,131.76,26.5629]
[1726517975774,7.8413265,131.8,131.76,26.5629]
[1726517976968,24.0307105,131.8,131.77,37.5888]
[1726517977976,31.6180105,131.8,131.77,30.0]
[1726517979473,51.365284,131.78,131.77,30.0]
[1726517979674,27.5905,131.75,131.7,26.574]
[1726517979979,23.776884,131.74,131.7,26.574]
[1726517980277,7.5913,131.73,131.7,26.574]
[1726517980576,7.5913,131.73,131.7,18.9812]
[1726517981486,7.5913,131.73,131.7,26.5741]
[1726517982854,7.5913,131.73,131.7,18.9812]
[1726517983283,23.776884,131.74,131.69,15.4705]
[1726517983284,31.368684,131.72,131.69,15.4705]
[1726517983464,7.5918,131.72,131.69,15.4705]
[1726517985377,7.5924,131.71,131.68,7.5937]
[1726517989470,7.5921,131.72,131.68,7.5937]
[1726517992771,7.5927,131.71,131.67,26.5801]
[1726517993374,7.5927,131.71,131.68,7.594]
[1726517996879,29.845584,131.74,131.67,18.9856]
[1726517997090,31.369084,131.72,131.67,18.9856]
[1726517997967,31.369084,131.72,131.68,7.5939]
[1726517998167,7.5929,131.71,131.67,26.5802]
[1726518000275,7.5929,131.71,131.68,7.594]
[1726518001533,31.368784,131.72,131.68,7.594]
[1726518001790,27.5909,131.74,131.7,7.5927]
[1726518002179,7.5913,131.73,131.69,26.577]
[1726518002384,7.5913,131.73,131.7,7.5928]
[1726518007012,6.20247408,131.73,131.7,7.5928]
[1726518011707,7.5919,131.72,131.69,26.5771]
[1726518012018,7.5925,131.71,131.67,7.5945]
[1726518012318,7.5931,131.7,131.66,26.8357265]
[1726518012608,7.5931,131.7,131.67,5.89127533]
[1726518012813,7.5931,131.7,131.66,26.8357265]
[1726518013024,7.5931,131.7,131.67,5.89128469]
[1726518013189,7.5931,131.7,131.66,26.8357265]
[1726518013389,7.5931,131.7,131.67,5.89162865]
[1726518013698,7.5931,131.7,131.66,26.8357265]
[1726518013900,7.5931,131.7,131.67,5.89307393]
[1726518014100,7.5931,131.7,131.66,26.8357265]
[1726518014305,7.5931,131.7,131.67,5.89307505]
[1726518014504,7.5931,131.7,131.66,26.8357265]
[1726518014693,7.5931,131.7,131.67,5.89275187]
[1726518014995,7.5931,131.7,131.66,26.8357265]
[1726518015193,7.5931,131.7,131.67,5.89316847]
[1726518015404,7.5931,131.7,131.67,7.5947]
[1726518016992,7.5927,131.71,131.67,7.5947]
[1726518022230,7.5932,131.7,131.67,7.5947]
[1726518024302,31.369484,131.71,131.67,7.5947]
[1726518030503,20.0,131.73,131.7,7.5928]
[1726518030812,7.5909,131.74,131.67,15.54014398]
[1726518031205,7.5909,131.74,131.7,7.5927]
[1726518032013,20.0,131.73,131.7,7.5927]
[1726518033807,20.0,131.73,131.71,7.5923]
[1726518034140,20.0,131.74,131.7,18.9811]
[1726518034430,20.0,131.74,131.71,7.592]
[1726518036027,7.5884,131.78,131.74,7.5904]
[1726518036225,23.2016,131.79,131.74,18.9763]
[1726518036728,7.5882,131.79,131.74,18.9763]
[1726518037527,7.5882,131.79,131.75,7.5901]
[1726518037902,20.0,131.78,131.75,7.5901]
[1726518038728,20.0,131.79,131.75,7.5901]
[1726518039925,27.5878,131.79,131.75,7.5901]
[1726518042200,20.0,131.79,131.76,7.5894]
[1726518042629,27.5879,131.79,131.75,7.5899]
[1726518044609,27.5879,131.79,131.76,7.5895]
[1726518044908,0.2538265,131.8,131.76,7.5895]
[1726518044909,27.8412265,131.8,131.76,7.5895]
[1726518050813,7.5879,131.79,131.76,7.5895]
[1726518061142,31.6181105,131.8,131.77,7.5889]
[1726518061323,31.6181105,131.8,131.76,26.563]
[1726518061726,0.2538265,131.8,131.77,7.5888]
[1726518062324,7.8413265,131.8,131.76,26.5632]
[1726518064240,23.776884,131.79,131.73,35.0165]
[1726518064437,7.5886,131.78,131.74,7.5906]
[1726518066646,31.366184,131.77,131.73,42.6076]
[1726518066852,7.5893,131.77,131.73,26.5681]
[1726518067735,7.5896,131.76,131.73,26.5681]
[1726518069434,7.5896,131.76,131.73,18.977]
[1726518070944,43.776884,131.77,131.7,18.9812]
[1726518071153,7.591,131.74,131.71,7.5923]
[1726518072430,43.776884,131.77,131.67,15.54014398]
[1726518072431,7.592,131.72,131.68,7.5938]
[1726518072848,7.592,131.72,131.69,7.5934]
[1726518073247,7.592,131.72,131.68,7.594]
[1726518073755,7.592,131.72,131.67,18.986]
[1726518073756,7.5914,131.73,131.69,7.5933]
[1726518077031,43.776884,131.77,131.67,26.5802]
[1726518077032,7.5924,131.71,131.67,26.5802]
[1726518077231,7.5924,131.71,131.67,26.5805]
[1726518077446,41.0004,131.74,131.66,23.1143265]
[1726518077636,43.776884,131.73,131.66,7.8489265]
[1726518077949,7.5925,131.71,131.67,7.5946]
[1726518082252,29.614,131.74,131.67,15.54014398]
[1726518082459,29.614,131.74,131.7,7.5929]
[1726518082763,23.5588,131.74,131.7,26.5752]
[1726518083134,7.5898,131.76,131.72,7.5915]
[1726518083334,22.8322,131.77,131.73,7.5912]
[1726518083335,30.4216,131.77,131.73,7.5912]
[1726518083534,0.2538265,131.8,131.73,7.5912]
[1726518083535,7.5886,131.78,131.73,7.5912]
[1726518083754,7.5886,131.78,131.74,7.5902]
[1726518083955,7.5879,131.79,131.75,7.5899]
[1726518084139,7.8412265,131.8,131.75,7.5899]
[1726518084557,7.8412265,131.8,131.76,7.5894]
[1726518092940,7.8412265,131.8,131.76,26.5632]
[1726518094067,7.8412265,131.8,131.76,26.0632]
[1726518094664,0.2538265,131.8,131.77,18.971]
[1726518094858,0.2538265,131.8,131.78,7.5881]
[1726518095058,0.2538265,131.8,131.79,7.5878]
[1726518099478,0.2538265,131.8,131.78,26.5578]
[1726518100461,0.2538265,131.8,131.79,7.5878]
[1726518103267,0.2538265,131.8,131.78,18.9696]
[1726518104379,0.2538265,131.8,131.79,7.5878]
[1726518114868,0.2538265,131.8,131.78,18.9696]
[1726518115166,7.8411265,131.8,131.77,7.5886]
[1726518116064,0.2538265,131.8,131.74,18.9766]
[1726518116272,0.2538265,131.8,131.74,26.567]
[1726518116273,7.5884,131.78,131.74,26.567]
[1726518116780,7.588,131.79,131.75,7.59]
[1726518119289,7.5886,131.78,131.74,26.5672]
[1726518120192,0.2538265,131.8,131.74,18.9766]
[1726518120380,7.8412265,131.8,131.76,7.5894]
[1726518120971,7.5878,131.79,131.76,7.5894]
[1726518121186,7.5878,131.79,131.75,7.5899]
[1726518123879,7.5893,131.77,131.73,7.5911]
[1726518124081,20.0,131.78,131.72,18.9796]
[1726518125399,13.7789,131.74,131.7,7.5928]
[1726518127123,13.7789,131.74,131.71,7.5923]
[1726518127124,6.188,131.74,131.71,7.5923]
[1726518128183,16.6038,131.75,131.72,7.5917]
[1726518128888,24.194,131.75,131.71,7.5922]
[1726518130005,7.5907,131.74,131.71,7.5922]
[1726518131783,7.5921,131.72,131.67,35.3358]
[1726518132103,7.5914,131.73,131.69,7.5932]
[1726518132403,7.5925,131.71,131.68,7.5939]
[1726518132590,7.5925,131.71,131.67,26.5804]
[1726518133193,7.5925,131.71,131.68,7.5941]
[1726518133995,43.776884,131.74,131.67,18.9859]
[1726518134311,43.776884,131.74,131.68,7.5939]
[1726518134312,7.5922,131.72,131.68,7.5939]
[1726518136003,7.5915,131.73,131.69,7.5935]
[1726518137114,27.5909,131.74,131.7,7.5928]
[1726518137302,7.5913,131.73,131.7,7.5928]
[1726518137620,18.98,131.72,131.66,0.2538265]
[1726518137791,6.6568,131.73,131.66,0.2538265]
[1726518138002,7.5927,131.71,131.66,0.2538265]